{"text_format":"3","workbook":"xlsx","n_sheets":6,"sheets":["Pardavimo skambučių žurnalas","Kliento kontaktinė informacija","Prieš skambutį","Skambinimas pirmą kartą","Pardavimo informacija","Tolesnė veikla"],"not_rendered":{"defined_names":14},"read":"whole","date_system":"1900"}

{"sheet":"Pardavimo skambučių žurnalas","index":0,"n_rows":13,"n_cols":7,"rows_kept":13}
[null," Įmonės pavadinimas"]
[null,"Pardavimo skambučių žurnalas"]
[null,"Skambučio nr.","Klientas","Įmonė","Data","Laikas","Pastabos"]
[null,1,"Danas Barkus",{"$f":"IF(PardavimoSkambučiųSąrašas[[#This Row],[Klientas]]=\"\",\"\",IFERROR(VLOOKUP(PardavimoSkambučiųSąrašas[[#This Row],[Klientas]],KlientoKontaktoInformacija[],2,0),\"Not Found\"))","v":"„Proseware, Inc.“"},{"$f":"TODAY()-5","v":"2017-10-07"},"08:30:00"]
[null,2,"Petras Balčiūnas",{"$f":"IF(PardavimoSkambučiųSąrašas[[#This Row],[Klientas]]=\"\",\"\",IFERROR(VLOOKUP(PardavimoSkambučiųSąrašas[[#This Row],[Klientas]],KlientoKontaktoInformacija[],2,0),\"Not Found\"))","v":"„Litware, Inc.“"},{"$f":"TODAY()-5","v":"2017-10-07"},"09:00:00"]
[null,3,"Janina Dargytė",{"$f":"IF(PardavimoSkambučiųSąrašas[[#This Row],[Klientas]]=\"\",\"\",IFERROR(VLOOKUP(PardavimoSkambučiųSąrašas[[#This Row],[Klientas]],KlientoKontaktoInformacija[],2,0),\"Not Found\"))","v":"„Northwind Traders“"},"2017-10-07","09:30:00"]
[null,4,"Augustinas Petrauskas",{"$f":"IF(PardavimoSkambučiųSąrašas[[#This Row],[Klientas]]=\"\",\"\",IFERROR(VLOOKUP(PardavimoSkambučiųSąrašas[[#This Row],[Klientas]],KlientoKontaktoInformacija[],2,0),\"Not Found\"))","v":"„Lucerne Publishing“"},"2017-10-07","10:00:00"]
[null,5,"Ričardas Mickus",{"$f":"IF(PardavimoSkambučiųSąrašas[[#This Row],[Klientas]]=\"\",\"\",IFERROR(VLOOKUP(PardavimoSkambučiųSąrašas[[#This Row],[Klientas]],KlientoKontaktoInformacija[],2,0),\"Not Found\"))","v":"„Margie's Travel“"},"2017-10-07","10:30:00"]
[null,6,"Danas Barkus",{"$f":"IF(PardavimoSkambučiųSąrašas[[#This Row],[Klientas]]=\"\",\"\",IFERROR(VLOOKUP(PardavimoSkambučiųSąrašas[[#This Row],[Klientas]],KlientoKontaktoInformacija[],2,0),\"Not Found\"))","v":"„Proseware, Inc.“"},{"$f":"TODAY()-3","v":"2017-10-09"},"11:00:00"]
[null,7,"Petras Balčiūnas",{"$f":"IF(PardavimoSkambučiųSąrašas[[#This Row],[Klientas]]=\"\",\"\",IFERROR(VLOOKUP(PardavimoSkambučiųSąrašas[[#This Row],[Klientas]],KlientoKontaktoInformacija[],2,0),\"Not Found\"))","v":"„Litware, Inc.“"},{"$f":"TODAY()-3","v":"2017-10-09"},"11:30:00"]
[null,8,"Danas Barkus",{"$f":"IF(PardavimoSkambučiųSąrašas[[#This Row],[Klientas]]=\"\",\"\",IFERROR(VLOOKUP(PardavimoSkambučiųSąrašas[[#This Row],[Klientas]],KlientoKontaktoInformacija[],2,0),\"Not Found\"))","v":"„Proseware, Inc.“"},{"$f":"TODAY()-1","v":"2017-10-11"},"12:00:00"]
[null,9,"Ričardas Mickus",{"$f":"IF(PardavimoSkambučiųSąrašas[[#This Row],[Klientas]]=\"\",\"\",IFERROR(VLOOKUP(PardavimoSkambučiųSąrašas[[#This Row],[Klientas]],KlientoKontaktoInformacija[],2,0),\"Not Found\"))","v":"„Margie's Travel“"},{"$f":"TODAY()-1","v":"2017-10-11"},"12:30:00"]
[null,10,"Ričardas Mickus",{"$f":"IF(PardavimoSkambučiųSąrašas[[#This Row],[Klientas]]=\"\",\"\",IFERROR(VLOOKUP(PardavimoSkambučiųSąrašas[[#This Row],[Klientas]],KlientoKontaktoInformacija[],2,0),\"Not Found\"))","v":"„Margie's Travel“"},{"$f":"TODAY()","v":"2017-10-12"},"13:00:00"]

{"sheet":"Kliento kontaktinė informacija","index":1,"n_rows":8,"n_cols":8,"rows_kept":8}
[null,{"$f":"ĮmonėsPavadinimas","v":" Įmonės pavadinimas"}]
[null,"Kliento kontaktinė informacija"]
[null,"Kliento vardas","Įmonės pavadinimas","Adresas","Miestas, pašto kodas","Pirminis telefono nr.","Antrinis telefono nr.","El. paštas"]
[null,"Petras Balčiūnas","„Litware, Inc.“","Pagrindinė g. 100","Kaunas 123456","(541) 555-0135","(541) 555-0136","Petras@litwareinc.com"]
[null,"Augustinas Petrauskas","„Lucerne Publishing“","Antroji al. 567","Trakai 23456","(425) 555-0198","(425) 555-0199","Augustinas@lucernepublishing.com"]
[null,"Ričardas Mickus","„Margie's Travel“","Apelsinų g. 987","Vilnius 34567","(888) 555-0125","(888) 555-0126","Ričardas@margiestravel.com"]
[null,"Janina Dargytė","„Northwind Traders“","Trečioji al. 890","Zarasai 45678","(541) 555-0175","(541) 555-0176","Janina@northwindtraders.com"]
[null,"Danas Barkus","„Proseware, Inc.“","Pagrindinis kl. 123","Anykščiai 56789","(509) 555-0150","(509) 555-0151","Danas@proseware.com"]

{"sheet":"Prieš skambutį","index":2,"n_rows":13,"n_cols":3,"rows_kept":13}
[null,{"$f":"ĮmonėsPavadinimas","v":" Įmonės pavadinimas"}]
[null,"Pardavimo skambučių kontrolinis sąrašas"]
[null,"Žymės langelis","Prieš skambutį"]
[null,null,"Peržiūrėti kliento retrospektyvą"]
[null,null,"Peržiūrėti kliento darbdavio retrospektyvą"]
[null,null,"Peržiūrėkite prioritetus ir pardavimo strategiją"]
[null,null,"Įtraukti elementą"]
[null,null,"Įtraukti elementą"]
[null,null,"Įtraukti elementą"]
[null,null,"Įtraukti elementą"]
[null,null,"Įtraukti elementą"]
[null,null,"Įtraukti elementą"]
[null,null,"Įtraukti elementą"]

{"sheet":"Skambinimas pirmą kartą","index":3,"n_rows":13,"n_cols":3,"rows_kept":13}
[null,{"$f":"ĮmonėsPavadinimas","v":" Įmonės pavadinimas"}]
[null,"Pardavimo skambučių kontrolinis sąrašas"]
[null,"Žymės langelis","Skambinimas pirmą kartą"]
[null,null,"Tiesioginis skambinimas atitinkamam asmeniui"]
[null,null,"Aiškus įvadas"]
[null,null,"Įtraukti elementą"]
[null,null,"Įtraukti elementą"]
[null,null,"Įtraukti elementą"]
[null,null,"Įtraukti elementą"]
[null,null,"Įtraukti elementą"]
[null,null,"Įtraukti elementą"]
[null,null,"Įtraukti elementą"]
[null,null,"Įtraukti elementą"]

{"sheet":"Pardavimo informacija","index":4,"n_rows":13,"n_cols":3,"rows_kept":13}
[null,{"$f":"ĮmonėsPavadinimas","v":" Įmonės pavadinimas"}]
[null,"Pardavimo skambučių kontrolinis sąrašas"]
[null,"Žymės langelis","Pardavimo informacija"]
[null,null,"Aiškus ir patrauktus produkto / paslaugos įvadas"]
[null,null,"Apima visus pagrindinius dalykus"]
[null,null,"Paminėti prisistatymą internete (pvz., svetainę, socialinius tinklus)"]
[null,null,"Įtraukti elementą"]
[null,null,"Įtraukti elementą"]
[null,null,"Įtraukti elementą"]
[null,null,"Įtraukti elementą"]
[null,null,"Įtraukti elementą"]
[null,null,"Įtraukti elementą"]
[null,null,"Įtraukti elementą"]

{"sheet":"Tolesnė veikla","index":5,"n_rows":13,"n_cols":3,"rows_kept":13}
[null,{"$f":"ĮmonėsPavadinimas","v":" Įmonės pavadinimas"}]
[null,"Pardavimo skambučių kontrolinis sąrašas"]
[null,"Žymės langelis","Stebėjimo informacija"]
[null,null,"Kliento kontaktinė informacija"]
[null,null,"Kliento asmeninė informacija"]
[null,null,"Kliento nuostatos"]
[null,null,"Perplanuotas kontaktas?"]
[null,null,"Atliktas pardavimas?"]
[null,null,"Įtraukti elementą"]
[null,null,"Įtraukti elementą"]
[null,null,"Įtraukti elementą"]
[null,null,"Įtraukti elementą"]
[null,null,"Įtraukti elementą"]